[Event "*** SCC Grand Prix: Titled Tuesday Blitz"]
[Site "Chess.com"]
[Date "2020.09.08"]
[Round "6"]
[White "Jospem"]
[Black "Bayernbk"]
[Result "1-0"]
[WhiteElo "2913"]
[BlackElo "2523"]
[TimeControl "180+1"]
[EndTime "11:08:16 PDT"]
[Termination "Jospem won by resignation"]

1. e4 {[%clk 0:03:00.9]} 1... e6 {[%clk 0:02:56.6]} 2. d4 {[%clk 0:03:01.1]}
2... d5 {[%clk 0:02:57.1]} 3. Nc3 {[%clk 0:03:02]} 3... Nf6 {[%clk 0:02:56.9]}
4. e5 {[%clk 0:03:02.4]} 4... Nfd7 {[%clk 0:02:57.3]} 5. f4 {[%clk 0:03:03]}
5... c5 {[%clk 0:02:58]} 6. Nf3 {[%clk 0:03:03.4]} 6... Nc6 {[%clk 0:02:58.6]}
7. Be3 {[%clk 0:03:03.8]} 7... a6 {[%clk 0:02:58.8]} 8. Qd2 {[%clk 0:03:04]}
8... b5 {[%clk 0:02:59.3]} 9. Bd3 {[%clk 0:03:04.2]} 9... Qb6 {[%clk 0:02:56.1]}
10. Qf2 {[%clk 0:03:03.4]} 10... cxd4 {[%clk 0:02:51.6]} 11. Nxd4 {[%clk
0:03:04.3]} 11... Bc5 {[%clk 0:02:51.3]} 12. Nce2 {[%clk 0:03:04]} 12... O-O
{[%clk 0:02:50.2]} 13. O-O {[%clk 0:03:04.5]} 13... b4 {[%clk 0:02:41.7]} 14.
Kh1 {[%clk 0:03:04.2]} 14... a5 {[%clk 0:02:34.7]} 15. Rad1 {[%clk 0:02:54.6]}
15... Ba6 {[%clk 0:02:33.1]} 16. c3 {[%clk 0:02:53.1]} 16... Bxd3 {[%clk
0:02:30.4]} 17. Rxd3 {[%clk 0:02:54]} 17... bxc3 {[%clk 0:02:12.8]} 18. bxc3
{[%clk 0:02:54.9]} 18... Rfb8 {[%clk 0:02:00.7]} 19. Ng3 {[%clk 0:02:47.8]}
19... Qa6 {[%clk 0:01:41.1]} 20. Rd2 {[%clk 0:02:42.6]} 20... Nxd4 {[%clk
0:01:38.3]} 21. cxd4 {[%clk 0:02:40.5]} 21... Bb4 {[%clk 0:01:38.6]} 22. Rdd1
{[%clk 0:02:36.4]} 22... f5 {[%clk 0:01:28]} 23. exf6 {[%clk 0:02:18.2]} 23...
Nxf6 {[%clk 0:01:27.8]} 24. f5 {[%clk 0:02:18.8]} 24... Bd6 {[%clk 0:01:06.9]}
25. Bf4 {[%clk 0:02:12.2]} 25... Re8 {[%clk 0:00:54.7]} 26. Qf3 {[%clk
0:02:03.6]} 26... Bxf4 {[%clk 0:00:50.5]} 27. Qxf4 {[%clk 0:02:03.1]} 27... Rac8
{[%clk 0:00:49.5]} 28. fxe6 {[%clk 0:01:54.4]} 28... Qxe6 {[%clk 0:00:48.8]} 29.
h3 {[%clk 0:01:17.7]} 29... Ne4 {[%clk 0:00:38.7]} 30. Nxe4 {[%clk 0:01:12.8]}
30... Qxe4 {[%clk 0:00:32.5]} 31. Qf7+ {[%clk 0:01:11.7]} 31... Kh8 {[%clk
0:00:33.1]} 32. Rf5 {[%clk 0:01:02.1]} 32... h6 {[%clk 0:00:22.8]} 33. Qxd5
{[%clk 0:01:00.4]} 33... Qxd5 {[%clk 0:00:17.9]} 34. Rxd5 {[%clk 0:01:01.3]}
34... Rc2 {[%clk 0:00:18.3]} 35. Rxa5 {[%clk 0:01:00.7]} 35... Ree2 {[%clk
0:00:18.3]} 36. Rg1 {[%clk 0:01:00.6]} 36... Rxa2 {[%clk 0:00:18.9]} 37. Rxa2
{[%clk 0:01:00.2]} 37... Rxa2 {[%clk 0:00:19.1]} 38. Rd1 {[%clk 0:01:00.4]}
38... Kg8 {[%clk 0:00:18.8]} 39. Kh2 {[%clk 0:00:57.7]} 39... Kf7 {[%clk
0:00:17.8]} 40. Kg3 {[%clk 0:00:57.2]} 40... Ke6 {[%clk 0:00:18.4]} 41. Re1+
{[%clk 0:00:53.6]} 41... Kd6 {[%clk 0:00:15.6]} 42. Rf1 {[%clk 0:00:43.2]} 42...
Ke6 {[%clk 0:00:14]} 43. h4 {[%clk 0:00:43.3]} 43... Rd2 {[%clk 0:00:11.8]} 44.
Rf4 {[%clk 0:00:39.6]} 44... g5 {[%clk 0:00:12.1]} 45. hxg5 {[%clk 0:00:30.5]}
45... hxg5 {[%clk 0:00:13]} 46. Re4+ {[%clk 0:00:30.8]} 46... Kf5 {[%clk
0:00:08.7]} 47. Re5+ {[%clk 0:00:30.9]} 47... Kf6 {[%clk 0:00:09.3]} 48. Rd5
{[%clk 0:00:31.3]} 48... Rd3+ {[%clk 0:00:08]} 49. Kg4 {[%clk 0:00:30.3]} 49...
Rd2 {[%clk 0:00:03.6]} 50. g3 {[%clk 0:00:30.1]} 50... Ke6 {[%clk 0:00:03.6]}
51. Re5+ {[%clk 0:00:22.4]} 51... Kf6 {[%clk 0:00:04]} 52. Rf5+ {[%clk
0:00:17.1]} 52... Ke6 {[%clk 0:00:04.5]} 53. d5+ {[%clk 0:00:17.3]} 53... Kd6
{[%clk 0:00:01.8]} 54. Kxg5 {[%clk 0:00:17.4]} 1-0

[Event "*** SCC Grand Prix: Titled Tuesday Blitz"]
[Site "Chess.com"]
[Date "2020.09.08"]
[Round "6"]
[White "Sultanasharminshirin"]
[Black "politeplayer"]
[Result "0-1"]
[WhiteElo "2004"]
[BlackElo "2247"]
[TimeControl "180+1"]
[EndTime "11:08:18 PDT"]
[Termination "politeplayer won on time"]

1. d4 {[%clk 0:02:26.8]} 1... d5 {[%clk 0:02:55.3]} 2. Nf3 {[%clk 0:02:26.3]}
2... Nf6 {[%clk 0:02:54.3]} 3. c4 {[%clk 0:02:25.9]} 3... e6 {[%clk 0:02:53.9]}
4. Nc3 {[%clk 0:02:24.7]} 4... Bb4 {[%clk 0:02:53.8]} 5. Bg5 {[%clk 0:02:21.9]}
5... dxc4 {[%clk 0:02:53.9]} 6. Qa4+ {[%clk 0:02:08.5]} 6... Nc6 {[%clk
0:02:52.1]} 7. e3 {[%clk 0:02:07.7]} 7... Bd7 {[%clk 0:02:51.6]} 8. Qc2 {[%clk
0:02:06.1]} 8... b5 {[%clk 0:02:44]} 9. a3 {[%clk 0:01:58.5]} 9... Bxc3+ {[%clk
0:02:40.1]} 10. Qxc3 {[%clk 0:01:50.1]} 10... h6 {[%clk 0:02:26]} 11. Bh4 {[%clk
0:01:47.5]} 11... g5 {[%clk 0:02:23.9]} 12. Bg3 {[%clk 0:01:46.9]} 12... Ne4
{[%clk 0:02:18.1]} 13. Qc2 {[%clk 0:01:47.2]} 13... f5 {[%clk 0:02:12.9]} 14.
Nd2 {[%clk 0:01:23.6]} 14... Nxd2 {[%clk 0:02:09.6]} 15. Qxd2 {[%clk 0:01:22.7]}
15... a5 {[%clk 0:01:56.8]} 16. a4 {[%clk 0:01:08.1]} 16... bxa4 {[%clk
0:01:53.3]} 17. Bxc4 {[%clk 0:01:06.9]} 17... Nb4 {[%clk 0:01:47.7]} 18. O-O
{[%clk 0:01:05.7]} 18... O-O {[%clk 0:01:44.2]} 19. Rac1 {[%clk 0:00:58.5]}
19... Rb8 {[%clk 0:01:32.8]} 20. Bxc7 {[%clk 0:00:57.2]} 20... Qe7 {[%clk
0:01:14.8]} 21. Bxb8 {[%clk 0:00:57]} 21... Rxb8 {[%clk 0:01:15.1]} 22. Rfd1
{[%clk 0:00:48]} 22... Bc6 {[%clk 0:01:07.7]} 23. Qe2 {[%clk 0:00:44.2]} 23...
Kg7 {[%clk 0:00:47.4]} 24. f3 {[%clk 0:00:41.4]} 24... Nd5 {[%clk 0:00:37]} 25.
e4 {[%clk 0:00:36.5]} 25... Nf4 {[%clk 0:00:35.6]} 26. Qd2 {[%clk 0:00:29.1]}
26... fxe4 {[%clk 0:00:31.1]} 27. fxe4 {[%clk 0:00:25.9]} 27... Qb4 {[%clk
0:00:29.4]} 28. Qxb4 {[%clk 0:00:23.2]} 28... Rxb4 {[%clk 0:00:28.3]} 29. d5
{[%clk 0:00:21.9]} 29... exd5 {[%clk 0:00:25]} 30. exd5 {[%clk 0:00:21.6]} 30...
Bd7 {[%clk 0:00:24.5]} 31. Rc2 {[%clk 0:00:21.5]} 31... Bg4 {[%clk 0:00:19.8]}
32. Re1 {[%clk 0:00:18.8]} 32... Kg6 {[%clk 0:00:17.3]} 33. h3 {[%clk
0:00:18.8]} 33... Bf5 {[%clk 0:00:16.6]} 34. Rc3 {[%clk 0:00:14.6]} 34... Rxb2
{[%clk 0:00:16.4]} 35. Rg3 {[%clk 0:00:12]} 35... a3 {[%clk 0:00:14.9]} 36. d6
{[%clk 0:00:10.5]} 36... a2 {[%clk 0:00:14.6]} 37. Bxa2 {[%clk 0:00:05.9]} 37...
Rxa2 {[%clk 0:00:13]} 38. Rd1 {[%clk 0:00:06.3]} 38... Ne2+ {[%clk 0:00:09.6]}
39. Kh2 {[%clk 0:00:05.2]} 39... Nxg3 {[%clk 0:00:09.3]} 40. Kxg3 {[%clk
0:00:05.6]} 40... Bd7 {[%clk 0:00:09.3]} 41. Re1 {[%clk 0:00:04.2]} 41... Rd2
{[%clk 0:00:07.4]} 42. Re7 {[%clk 0:00:03.1]} 42... Rxd6 {[%clk 0:00:07.3]} 43.
Kf2 {[%clk 0:00:02.5]} 43... a4 {[%clk 0:00:07.5]} 44. Re3 {[%clk 0:00:01.7]}
44... Be6 {[%clk 0:00:05.7]} 0-1

[Event "*** SCC Grand Prix: Titled Tuesday Blitz"]
[Site "Chess.com"]
[Date "2020.09.08"]
[Round "6"]
[White "Ramu_K_FM_FT"]
[Black "ErikRonka"]
[Result "0-1"]
[WhiteElo "1970"]
[BlackElo "2246"]
[TimeControl "180+1"]
[EndTime "11:08:20 PDT"]
[Termination "ErikRonka won by resignation"]

1. e4 {[%clk 0:03:00.9]} 1... e5 {[%clk 0:02:59.5]} 2. Nf3 {[%clk 0:03:00.1]}
2... Nc6 {[%clk 0:02:59.6]} 3. Bb5 {[%clk 0:02:58]} 3... a6 {[%clk 0:02:59.9]}
4. Ba4 {[%clk 0:02:58]} 4... d6 {[%clk 0:03:00.3]} 5. O-O {[%clk 0:02:55.2]}
5... Bg4 {[%clk 0:02:59.9]} 6. c3 {[%clk 0:02:54.2]} 6... Qf6 {[%clk 0:02:45.4]}
7. Re1 {[%clk 0:02:42.5]} 7... Ne7 {[%clk 0:02:39.4]} 8. d3 {[%clk 0:02:41.6]}
8... h6 {[%clk 0:02:35]} 9. Nbd2 {[%clk 0:02:31.9]} 9... g5 {[%clk 0:02:33.9]}
10. Qe2 {[%clk 0:02:13.9]} 10... Ng6 {[%clk 0:02:30.6]} 11. Bd1 {[%clk
0:02:11.5]} 11... Nf4 {[%clk 0:02:29.7]} 12. Qf1 {[%clk 0:02:11.9]} 12... h5
{[%clk 0:02:21]} 13. Nc4 {[%clk 0:02:09.8]} 13... Be6 {[%clk 0:01:46.7]} 14.
Bxf4 {[%clk 0:01:49.7]} 14... Qxf4 {[%clk 0:01:36.5]} 15. Qe2 {[%clk 0:01:39.5]}
15... g4 {[%clk 0:01:35.7]} 16. Nfd2 {[%clk 0:01:26]} 16... Bh6 {[%clk
0:01:29.5]} 17. Nf1 {[%clk 0:01:15.8]} 17... O-O-O {[%clk 0:01:16.3]} 18. Nce3
{[%clk 0:01:09.6]} 18... Rdg8 {[%clk 0:01:05.7]} 19. Bb3 {[%clk 0:01:02.5]}
19... h4 {[%clk 0:00:58]} 20. Rad1 {[%clk 0:00:41.2]} 20... Qg5 {[%clk 0:00:52]}
21. d4 {[%clk 0:00:31.9]} 21... g3 {[%clk 0:00:51.6]} 22. fxg3 {[%clk
0:00:30.8]} 22... hxg3 {[%clk 0:00:52.5]} 23. Nxg3 {[%clk 0:00:29.6]} 23... Ne7
{[%clk 0:00:48.7]} 24. Nef1 {[%clk 0:00:27.5]} 24... Qh4 {[%clk 0:00:30]} 25.
Rd3 {[%clk 0:00:24.8]} 25... Bf4 {[%clk 0:00:29.2]} 26. Bxe6+ {[%clk 0:00:20]}
26... fxe6 {[%clk 0:00:30.1]} 27. Rf3 {[%clk 0:00:18.9]} 27... Ng6 {[%clk
0:00:23.6]} 28. Qc4 {[%clk 0:00:16.9]} 28... Qe7 {[%clk 0:00:19.4]} 29. Kf2
{[%clk 0:00:15.3]} 29... Nh4 {[%clk 0:00:19.1]} 30. Rd3 {[%clk 0:00:13.6]} 30...
Rf8 {[%clk 0:00:13.3]} 31. Kg1 {[%clk 0:00:13.4]} 31... Rhg8 {[%clk 0:00:13.9]}
32. Re2 {[%clk 0:00:13.4]} 32... Qf6 {[%clk 0:00:13.6]} 33. Qb3 {[%clk
0:00:13.1]} 33... Bh6 {[%clk 0:00:11]} 34. Qd1 {[%clk 0:00:12.2]} 34... Qg6
{[%clk 0:00:09.1]} 35. Qe1 {[%clk 0:00:11.8]} 35... Bf4 {[%clk 0:00:09.5]} 36.
Rf3 {[%clk 0:00:10.7]} 36... Nxf3+ {[%clk 0:00:09]} 37. gxf3 {[%clk 0:00:10.8]}
37... exd4 {[%clk 0:00:07.1]} 38. cxd4 {[%clk 0:00:10]} 38... Qf6 {[%clk
0:00:07.7]} 39. Kg2 {[%clk 0:00:09.3]} 39... Bxg3 {[%clk 0:00:07.7]} 40. Nxg3
{[%clk 0:00:08.4]} 40... Qxf3+ {[%clk 0:00:08]} 41. Kg1 {[%clk 0:00:08.7]} 41...
Qf6 {[%clk 0:00:06.7]} 42. e5 {[%clk 0:00:08]} 42... Qf4 {[%clk 0:00:06]} 43.
exd6 {[%clk 0:00:07.3]} 43... Qxd4+ {[%clk 0:00:05.5]} 44. Kg2 {[%clk
0:00:07.4]} 44... Qxd6 {[%clk 0:00:06.4]} 45. Qd2 {[%clk 0:00:06.2]} 45... Qxd2
{[%clk 0:00:06.3]} 46. Rxd2 {[%clk 0:00:06.3]} 46... Rd8 {[%clk 0:00:06.5]} 47.
Re2 {[%clk 0:00:06.3]} 47... Rd6 {[%clk 0:00:06.8]} 48. h4 {[%clk 0:00:05.5]}
48... Rd3 {[%clk 0:00:06.2]} 0-1

[Event "*** SCC Grand Prix: Titled Tuesday Blitz"]
[Site "Chess.com"]
[Date "2020.09.08"]
[Round "6"]
[White "mmaks007"]
[Black "2nd_life"]
[Result "0-1"]
[WhiteElo "2259"]
[BlackElo "2541"]
[TimeControl "180+1"]
[EndTime "11:08:22 PDT"]
[Termination "2nd_life won on time"]

1. e4 {[%clk 0:03:00.9]} 1... e5 {[%clk 0:02:59.5]} 2. Nf3 {[%clk 0:02:57.4]}
2... Nc6 {[%clk 0:02:59.7]} 3. Bb5 {[%clk 0:02:53.7]} 3... a6 {[%clk 0:02:59.6]}
4. Ba4 {[%clk 0:02:52]} 4... Nf6 {[%clk 0:02:59.4]} 5. O-O {[%clk 0:02:50.6]}
5... Be7 {[%clk 0:02:58.6]} 6. Re1 {[%clk 0:02:49.2]} 6... b5 {[%clk 0:02:58.7]}
7. Bb3 {[%clk 0:02:47.2]} 7... d6 {[%clk 0:02:59.3]} 8. c3 {[%clk 0:02:43.5]}
8... O-O {[%clk 0:02:58.6]} 9. h3 {[%clk 0:02:39.8]} 9... Bb7 {[%clk 0:02:58.6]}
10. d4 {[%clk 0:02:39]} 10... Re8 {[%clk 0:02:58.4]} 11. Nbd2 {[%clk 0:02:35.6]}
11... Bf8 {[%clk 0:02:57.9]} 12. Bc2 {[%clk 0:02:27.8]} 12... Nb8 {[%clk
0:02:49.9]} 13. d5 {[%clk 0:02:13.2]} 13... c6 {[%clk 0:02:44.6]} 14. dxc6
{[%clk 0:02:12]} 14... Bxc6 {[%clk 0:02:23.1]} 15. Nf1 {[%clk 0:02:11]} 15... h6
{[%clk 0:02:18.5]} 16. Ng3 {[%clk 0:02:07.8]} 16... Nbd7 {[%clk 0:02:09.2]} 17.
b3 {[%clk 0:01:37.5]} 17... d5 {[%clk 0:01:50.1]} 18. exd5 {[%clk 0:01:29.7]}
18... Bxd5 {[%clk 0:01:50]} 19. a4 {[%clk 0:00:59.9]} 19... Qc7 {[%clk
0:01:38.2]} 20. axb5 {[%clk 0:00:48.1]} 20... axb5 {[%clk 0:01:28.3]} 21. Rxa8
{[%clk 0:00:47.4]} 21... Bxa8 {[%clk 0:01:27.2]} 22. Bb2 {[%clk 0:00:40.8]}
22... Bc5 {[%clk 0:01:18.2]} 23. Ne4 {[%clk 0:00:38.4]} 23... Nxe4 {[%clk
0:01:05.1]} 24. Bxe4 {[%clk 0:00:39.3]} 24... Bxe4 {[%clk 0:01:04.8]} 25. Rxe4
{[%clk 0:00:40.2]} 25... Nf6 {[%clk 0:01:03.9]} 26. Re1 {[%clk 0:00:39.7]} 26...
e4 {[%clk 0:01:03.2]} 27. Nd4 {[%clk 0:00:29.4]} 27... Rd8 {[%clk 0:01:01]} 28.
Qe2 {[%clk 0:00:29.3]} 28... Bxd4 {[%clk 0:00:56]} 29. cxd4 {[%clk 0:00:30.2]}
29... Rd5 {[%clk 0:00:45.3]} 30. Rc1 {[%clk 0:00:28.7]} 30... Qd7 {[%clk
0:00:40.5]} 31. Rc5 {[%clk 0:00:20.6]} 31... g5 {[%clk 0:00:32.2]} 32. Qc2
{[%clk 0:00:19.7]} 32... Kg7 {[%clk 0:00:28.7]} 33. Rc7 {[%clk 0:00:13.2]} 33...
Qf5 {[%clk 0:00:28.4]} 34. Rc5 {[%clk 0:00:12.7]} 34... h5 {[%clk 0:00:21.8]}
35. b4 {[%clk 0:00:12.6]} 35... Kg6 {[%clk 0:00:17.9]} 36. Rxd5 {[%clk
0:00:11.8]} 36... Nxd5 {[%clk 0:00:16.2]} 37. Qc5 {[%clk 0:00:11]} 37... Nf4
{[%clk 0:00:15.5]} 38. Qxf5+ {[%clk 0:00:10.9]} 38... Kxf5 {[%clk 0:00:15.1]}
39. Kf1 {[%clk 0:00:10.3]} 39... Nd5 {[%clk 0:00:13.1]} 40. Ke2 {[%clk
0:00:08.6]} 40... Nxb4 {[%clk 0:00:12.7]} 41. Bc1 {[%clk 0:00:07.3]} 41... Nd5
{[%clk 0:00:12.4]} 42. g3 {[%clk 0:00:04.4]} 42... g4 {[%clk 0:00:10.9]} 43.
hxg4+ {[%clk 0:00:03.7]} 43... Kxg4 {[%clk 0:00:09.9]} 44. Bh6 {[%clk
0:00:02.7]} 44... f5 {[%clk 0:00:09.9]} 45. Bf8 {[%clk 0:00:02.7]} 45... f4
{[%clk 0:00:09.1]} 46. gxf4 {[%clk 0:00:02.6]} 46... Kxf4 {[%clk 0:00:09.3]} 47.
Bg7 {[%clk 0:00:01.6]} 47... h4 {[%clk 0:00:09]} 48. Be5+ {[%clk 0:00:02.5]}
48... Kg4 {[%clk 0:00:08.8]} 49. Bd6 {[%clk 0:00:02]} 49... h3 {[%clk
0:00:09.1]} 50. Bb8 {[%clk 0:00:01.6]} 50... b4 {[%clk 0:00:08.5]} 51. Be5
{[%clk 0:00:01.8]} 51... b3 {[%clk 0:00:08.6]} 0-1

[Event "*** SCC Grand Prix: Titled Tuesday Blitz"]
[Site "Chess.com"]
[Date "2020.09.08"]
[Round "6"]
[White "pavelalexandru07"]
[Black "plumalka"]
[Result "0-1"]
[WhiteElo "2267"]
[BlackElo "2421"]
[TimeControl "180+1"]
[EndTime "11:08:22 PDT"]
[Termination "plumalka won by checkmate"]

1. e4 {[%clk 0:03:00.9]} 1... c5 {[%clk 0:02:55.2]} 2. Nf3 {[%clk 0:03:00.4]}
2... d6 {[%clk 0:02:54.9]} 3. d4 {[%clk 0:03:00.6]} 3... cxd4 {[%clk 0:02:55.8]}
4. Nxd4 {[%clk 0:03:01.2]} 4... Nf6 {[%clk 0:02:56]} 5. Nc3 {[%clk 0:03:01.7]}
5... Bd7 {[%clk 0:02:56.4]} 6. Bg5 {[%clk 0:03:00.4]} 6... e6 {[%clk 0:02:56.7]}
7. f4 {[%clk 0:02:57.5]} 7... Nc6 {[%clk 0:02:48.1]} 8. Qd2 {[%clk 0:02:55.9]}
8... h6 {[%clk 0:02:47.1]} 9. Bxf6 {[%clk 0:02:51.7]} 9... Qxf6 {[%clk 0:02:48]}
10. Ndb5 {[%clk 0:02:44.7]} 10... O-O-O {[%clk 0:02:16.9]} 11. O-O-O {[%clk
0:02:17.4]} 11... a6 {[%clk 0:02:15.9]} 12. Na3 {[%clk 0:01:50.8]} 12... g5
{[%clk 0:02:14.6]} 13. g3 {[%clk 0:01:48.2]} 13... gxf4 {[%clk 0:02:12.8]} 14.
gxf4 {[%clk 0:01:49.1]} 14... h5 {[%clk 0:02:13]} 15. Bd3 {[%clk 0:01:43.6]}
15... Bh6 {[%clk 0:02:10.8]} 16. Rhf1 {[%clk 0:01:43.1]} 16... Rhg8 {[%clk
0:02:08.2]} 17. Kb1 {[%clk 0:01:42.7]} 17... Rg4 {[%clk 0:02:07.4]} 18. Ne2
{[%clk 0:01:42.5]} 18... Rg2 {[%clk 0:02:06.8]} 19. Qe3 {[%clk 0:01:40.3]} 19...
Kc7 {[%clk 0:01:51.2]} 20. Nc4 {[%clk 0:01:19.3]} 20... Be8 {[%clk 0:01:37]} 21.
Qb6+ {[%clk 0:01:07]} 21... Kc8 {[%clk 0:01:36.8]} 22. e5 {[%clk 0:00:53.7]}
22... dxe5 {[%clk 0:01:17.1]} 23. fxe5 {[%clk 0:00:52.5]} 23... Qe7 {[%clk
0:01:16.3]} 24. Nd6+ {[%clk 0:00:50]} 24... Rxd6 {[%clk 0:00:58.6]} 25. exd6
{[%clk 0:00:50.9]} 25... Qd8 {[%clk 0:00:58.5]} 26. Qxd8+ {[%clk 0:00:48.7]}
26... Kxd8 {[%clk 0:00:57.9]} 27. Nc3 {[%clk 0:00:34.9]} 27... f5 {[%clk
0:00:56]} 28. Bc4 {[%clk 0:00:28]} 28... Kd7 {[%clk 0:00:53]} 29. Na4 {[%clk
0:00:26.8]} 29... Be3 {[%clk 0:00:48.9]} 30. Rf3 {[%clk 0:00:13.2]} 30... f4
{[%clk 0:00:48.2]} 31. Bb3 {[%clk 0:00:10.8]} 31... b5 {[%clk 0:00:46.2]} 32.
Nc3 {[%clk 0:00:10.2]} 32... Bg6 {[%clk 0:00:42.6]} 33. Rff1 {[%clk 0:00:06.6]}
33... Nd4 {[%clk 0:00:41.5]} 34. a4 {[%clk 0:00:04.9]} 34... Nxb3 {[%clk
0:00:40.9]} 35. axb5 {[%clk 0:00:04.2]} 35... Bxc2+ {[%clk 0:00:40.7]} 36. Ka2
{[%clk 0:00:03.9]} 36... Nd4 {[%clk 0:00:37.2]} 37. bxa6 {[%clk 0:00:02.8]}
37... Bb3+ {[%clk 0:00:34.8]} 38. Ka1 {[%clk 0:00:02.2]} 38... Bxd1 {[%clk
0:00:24.6]} 39. a7 {[%clk 0:00:01.9]} 39... Nc2+ {[%clk 0:00:23.1]} 40. Kb1
{[%clk 0:00:02.4]} 40... Bxa7 {[%clk 0:00:22.8]} 41. Rxd1 {[%clk 0:00:03.2]}
41... Ne3 {[%clk 0:00:22.9]} 42. Rd3 {[%clk 0:00:03]} 42... Bc5 {[%clk
0:00:22.6]} 43. Ne4 {[%clk 0:00:02.9]} 43... Bb4 {[%clk 0:00:21.8]} 44. b3
{[%clk 0:00:02.5]} 44... Rg6 {[%clk 0:00:17.1]} 45. Kb2 {[%clk 0:00:01.7]} 45...
Nd5 {[%clk 0:00:16.5]} 46. Rd4 {[%clk 0:00:02]} 46... Bxd6 {[%clk 0:00:16.3]}
47. Nxd6 {[%clk 0:00:02]} 47... Kxd6 {[%clk 0:00:17.2]} 48. Re4 {[%clk
0:00:02.2]} 48... e5 {[%clk 0:00:17.2]} 49. b4 {[%clk 0:00:02.5]} 49... f3
{[%clk 0:00:17.4]} 50. b5 {[%clk 0:00:01.7]} 50... f2 {[%clk 0:00:17.7]} 51. b6
{[%clk 0:00:01.5]} 51... f1=Q {[%clk 0:00:17.9]} 52. b7 {[%clk 0:00:02.4]} 52...
Rg2+ {[%clk 0:00:18]} 53. Kb3 {[%clk 0:00:02.5]} 53... Qd3+ {[%clk 0:00:18]} 54.
Ka4 {[%clk 0:00:02.4]} 54... Ra2# {[%clk 0:00:18.2]} 0-1

[Event "*** SCC Grand Prix: Titled Tuesday Blitz"]
[Site "Chess.com"]
[Date "2020.09.08"]
[Round "6"]
[White "dragos420"]
[Black "GMKrikor"]
[Result "1/2-1/2"]
[WhiteElo "2505"]
[BlackElo "2687"]
[TimeControl "180+1"]
[EndTime "11:08:23 PDT"]
[Termination "Game drawn - insufficient material"]

1. e4 {[%clk 0:03:00.9]} 1... c5 {[%clk 0:02:59.4]} 2. Nf3 {[%clk 0:03:00.9]}
2... d6 {[%clk 0:02:57.7]} 3. d4 {[%clk 0:03:01]} 3... cxd4 {[%clk 0:02:57.8]}
4. Nxd4 {[%clk 0:03:01.9]} 4... Nf6 {[%clk 0:02:54.8]} 5. Nc3 {[%clk 0:03:01.1]}
5... a6 {[%clk 0:02:53.3]} 6. Be3 {[%clk 0:02:57.6]} 6... e6 {[%clk 0:02:41.5]}
7. f3 {[%clk 0:02:56.5]} 7... b5 {[%clk 0:02:40.6]} 8. Qd2 {[%clk 0:02:50.3]}
8... Nbd7 {[%clk 0:02:39.6]} 9. g4 {[%clk 0:02:47.4]} 9... b4 {[%clk 0:02:31.4]}
10. Nce2 {[%clk 0:02:43.3]} 10... h6 {[%clk 0:02:15]} 11. h4 {[%clk 0:02:33.2]}
11... Ne5 {[%clk 0:02:13.6]} 12. Ng3 {[%clk 0:02:25.1]} 12... Qc7 {[%clk
0:02:05.5]} 13. Qg2 {[%clk 0:02:15.7]} 13... Bb7 {[%clk 0:02:00]} 14. O-O-O
{[%clk 0:02:10.4]} 14... Nc4 {[%clk 0:01:25.6]} 15. Bxc4 {[%clk 0:02:08.2]}
15... Qxc4 {[%clk 0:01:26.5]} 16. Kb1 {[%clk 0:02:08.2]} 16... Nd7 {[%clk
0:01:23.5]} 17. g5 {[%clk 0:01:57.7]} 17... hxg5 {[%clk 0:01:24.4]} 18. hxg5
{[%clk 0:01:58.4]} 18... Rxh1 {[%clk 0:01:24.2]} 19. Rxh1 {[%clk 0:01:57.8]}
19... g6 {[%clk 0:01:24.7]} 20. Rh8 {[%clk 0:01:49.8]} 20... O-O-O {[%clk
0:01:18.7]} 21. Qd2 {[%clk 0:01:42.1]} 21... Bg7 {[%clk 0:00:54.6]} 22. Rxd8+
{[%clk 0:01:40.7]} 22... Kxd8 {[%clk 0:00:55.5]} 23. b3 {[%clk 0:01:17.7]} 23...
Qc3 {[%clk 0:00:55.5]} 24. Qxc3 {[%clk 0:01:15.2]} 24... bxc3 {[%clk 0:00:56.4]}
25. Nge2 {[%clk 0:01:15]} 25... e5 {[%clk 0:00:46.4]} 26. Nb5 {[%clk 0:00:54.6]}
26... axb5 {[%clk 0:00:44.7]} 27. Nxc3 {[%clk 0:00:55.5]} 27... Bc6 {[%clk
0:00:42]} 28. a4 {[%clk 0:00:52.8]} 28... bxa4 {[%clk 0:00:41.5]} 29. bxa4
{[%clk 0:00:53.7]} 29... f5 {[%clk 0:00:39.6]} 30. a5 {[%clk 0:00:48.4]} 30...
fxe4 {[%clk 0:00:35.1]} 31. fxe4 {[%clk 0:00:47.3]} 31... Kc7 {[%clk 0:00:27.2]}
32. Kb2 {[%clk 0:00:44.1]} 32... Nc5 {[%clk 0:00:20.7]} 33. Bxc5 {[%clk
0:00:39.7]} 33... dxc5 {[%clk 0:00:21.6]} 34. Kb3 {[%clk 0:00:40.6]} 34... Bf8
{[%clk 0:00:22]} 35. Kc4 {[%clk 0:00:40.1]} 35... Kb7 {[%clk 0:00:16]} 36. Nd5
{[%clk 0:00:25.9]} 36... Ka6 {[%clk 0:00:15.3]} 37. Nc7+ {[%clk 0:00:12.4]}
37... Kxa5 {[%clk 0:00:15.3]} 38. Ne6 {[%clk 0:00:13.3]} 38... Be7 {[%clk
0:00:15.4]} 39. Nxc5 {[%clk 0:00:12.5]} 39... Kb6 {[%clk 0:00:12]} 40. Nd3
{[%clk 0:00:11.5]} 40... Bd6 {[%clk 0:00:10.7]} 41. Nf2 {[%clk 0:00:07.8]} 41...
Bc5 {[%clk 0:00:08.3]} 42. Nd3 {[%clk 0:00:06.6]} 42... Bb5+ {[%clk 0:00:08.9]}
43. Kd5 {[%clk 0:00:06.5]} 43... Bxd3 {[%clk 0:00:07.6]} 44. cxd3 {[%clk
0:00:07.4]} 44... Bd4 {[%clk 0:00:07.8]} 45. Ke6 {[%clk 0:00:07.8]} 45... Kc5
{[%clk 0:00:07.9]} 46. Kf7 {[%clk 0:00:08]} 46... Be3 {[%clk 0:00:07.6]} 47.
Kxg6 {[%clk 0:00:08.3]} 47... Kd4 {[%clk 0:00:08.5]} 48. Kf6 {[%clk 0:00:07.8]}
48... Kxd3 {[%clk 0:00:03.7]} 49. Kxe5 {[%clk 0:00:02.8]} 49... Bxg5 {[%clk
0:00:03.8]} 50. Kf5 {[%clk 0:00:03.3]} 50... Bh4 {[%clk 0:00:03.8]} 51. e5
{[%clk 0:00:04.2]} 51... Bd8 {[%clk 0:00:04.1]} 52. e6 {[%clk 0:00:05.1]} 52...
Kd4 {[%clk 0:00:04.6]} 53. e7 {[%clk 0:00:06]} 53... Bxe7 {[%clk 0:00:04.2]}
1/2-1/2